[Event "Rapid Tournament (RAP)"]
[Site "Biel, Switzerland"]
[Date "2026.07.12"]
[Round "9.40"]
[White "Lachat, Pierre"]
[Black "Paholok, Igor"]
[Result "0-1"]
[TimeControl "15 + 5"]
[WhiteTitle "-"]
[BlackTitle "-"]
[WhiteFideId "1310763"]
[BlackFideId "1338951"]
[WhiteElo "1904"]
[BlackElo "1784"]

1. d4 {[%clk 00:15:04]} {[%emt 00:00:03]} g6 {[%clk 00:15:09]} {[%emt
00:00:04]} 2. c4 {[%clk 00:15:07]} Bg7 {[%clk 00:15:13]} 3. Nc3 {[%clk
00:15:10]} {[%emt 00:00:02]} c5 {[%clk 00:15:14]} {[%emt 00:00:05]} 4. e3
{[%clk 00:15:03]} {[%emt 00:00:10]} f5 {[%clk 00:15:12]} {[%emt 00:00:07]} 5.
Nf3 {[%clk 00:15:03]} {[%emt 00:00:06]} d6 {[%clk 00:15:15]} {[%emt 00:00:03]}
6. Qc2 {[%clk 00:14:53]} {[%emt 00:00:14]} Nf6 {[%clk 00:15:17]} {[%emt
00:00:02]} 7. d5 {[%clk 00:14:51]} {[%emt 00:00:07]} Na6 {[%clk 00:14:40]}
{[%emt 00:00:43]} 8. a3 {[%clk 00:14:53]} {[%emt 00:00:04]} Nc7 {[%clk
00:14:44]} 9. Bd3 {[%clk 00:14:49]} {[%emt 00:00:09]} Bd7 {[%clk 00:14:34]}
{[%emt 00:00:13]} 10. Rb1 {[%clk 00:14:30]} {[%emt 00:00:23]} a6 {[%clk
00:14:38]} {[%emt 00:00:03]} 11. O-O {[%clk 00:14:11]} {[%emt 00:00:23]} b5
{[%clk 00:14:31]} {[%emt 00:00:13]} 12. b4 {[%clk 00:13:20]} {[%emt 00:00:57]}
cxb4 {[%clk 00:14:18]} {[%emt 00:00:17]} 13. Rxb4 {[%clk 00:12:48]} {[%emt
00:00:37]} bxc4 {[%clk 00:13:30]} {[%emt 00:00:54]} 14. Bxc4 {[%clk 00:12:38]}
{[%emt 00:00:14]} Rb8 {[%clk 00:13:10]} {[%emt 00:00:25]} 15. Rxb8 {[%clk
00:11:13]} {[%emt 00:01:30]} Qxb8 {[%clk 00:13:14]} {[%emt 00:00:02]} 16. Bb2
{[%clk 00:11:15]} {[%emt 00:00:03]} O-O {[%clk 00:13:06]} {[%emt 00:00:12]} 17.
Rb1 {[%clk 00:11:00]} {[%emt 00:00:19]} Qa8 {[%clk 00:12:21]} {[%emt 00:00:51]}
18. Qd3 {[%clk 00:08:40]} {[%emt 00:02:25]} Rb8 {[%clk 00:11:56]} {[%emt
00:00:30]} 19. Ba1 {[%clk 00:07:21]} {[%emt 00:01:23]} Rb7 {[%clk 00:10:14]}
{[%emt 00:01:48]} 20. Rd1 {[%clk 00:06:50]} {[%emt 00:00:35]} Qa7 {[%clk
00:09:01]} {[%emt 00:01:19]} 21. Ng5 {[%clk 00:06:01]} {[%emt 00:00:54]} h6
{[%clk 00:08:21]} {[%emt 00:00:45]} 22. Ne6 {[%clk 00:06:00]} {[%emt 00:00:06]}
Nxe6 {[%clk 00:08:10]} {[%emt 00:00:16]} 23. dxe6 {[%clk 00:06:03]} {[%emt
00:00:02]} Bc6 {[%clk 00:07:39]} {[%emt 00:00:33]} 24. Nd5 {[%clk 00:05:37]}
{[%emt 00:00:33]} Bxd5 {[%clk 00:06:59]} {[%emt 00:00:46]} 25. Bxd5 {[%clk
00:05:40]} {[%emt 00:00:02]} Nxd5 {[%clk 00:06:13]} {[%emt 00:00:51]} 26. Qxd5
{[%clk 00:05:44]} {[%emt 00:00:01]} Bxa1 {[%clk 00:05:47]} {[%emt 00:00:31]} 27.
Rxa1 {[%clk 00:05:47]} {[%emt 00:00:02]} Rb2 {[%clk 00:04:49]} {[%emt
00:01:01]} 28. Qc6 {[%clk 00:05:20]} {[%emt 00:00:34]} Qb8 {[%clk 00:04:08]}
{[%emt 00:00:42]} 29. g3 {[%clk 00:05:06]} {[%emt 00:00:23]} Rb6 {[%clk
00:03:59]} {[%emt 00:00:14]} 30. Qc4 {[%clk 00:04:02]} {[%emt 00:01:08]} Rb1+
{[%clk 00:03:25]} {[%emt 00:00:39]} 31. Rxb1 {[%clk 00:04:06]} {[%emt
00:00:02]} Qxb1+ {[%clk 00:03:28]} {[%emt 00:00:01]} 32. Kg2 {[%clk 00:04:10]}
{[%emt 00:00:02]} Qe4+ {[%clk 00:03:32]} {[%emt 00:00:01]} 33. Qxe4 {[%clk
00:04:14]} {[%emt 00:00:02]} fxe4 {[%clk 00:03:36]} {[%emt 00:00:01]} 34. f3
{[%clk 00:03:24]} {[%emt 00:00:54]} Kg7 {[%clk 00:02:54]} {[%emt 00:00:47]} 35.
fxe4 {[%clk 00:03:26]} {[%emt 00:00:03]} Kf6 {[%clk 00:02:58]} 36. Kf3 {[%clk
00:03:29]} {[%emt 00:00:02]} Kxe6 {[%clk 00:02:55]} {[%emt 00:00:08]} 37. h4
{[%clk 00:02:42]} {[%emt 00:00:52]} Ke5 {[%clk 00:02:39]} {[%emt 00:00:21]} 38.
a4 {[%clk 00:01:57]} {[%emt 00:00:50]} a5 {[%clk 00:02:38]} {[%emt 00:00:06]}
39. g4 {[%clk 00:01:05]} {[%emt 00:00:57]} e6 {[%clk 00:02:35]} {[%emt
00:00:07]} 40. h5 {[%clk 00:00:55]} {[%emt 00:00:16]} g5 {[%clk 00:02:36]}
{[%emt 00:00:04]} 41. Kf2 {[%clk 00:00:46]} {[%emt 00:00:14]} Kxe4 {[%clk
00:02:39]} {[%emt 00:00:03]} 42. Ke2 {[%clk 00:00:50]} {[%emt 00:00:01]} e5
{[%clk 00:02:32]} {[%emt 00:00:12]} 43. Kf2 {[%clk 00:00:51]} {[%emt 00:00:02]}
Kd3 {[%clk 00:02:25]} {[%emt 00:00:11]} 44. Kf3 {[%clk 00:00:53]} {[%emt
00:00:04]} d5 {[%clk 00:01:42]} {[%emt 00:00:49]} 45. Kf2 {[%clk 00:00:52]}
{[%emt 00:00:06]} e4 {[%clk 00:01:26]} {[%emt 00:00:21]} 0-1

[Event "Rapid Tournament (RAP)"]
[Site "Biel, Switzerland"]
[Date "2026.07.12"]
[Round "9.41"]
[White "Zumbrunn, Simon"]
[Black "Lang, Fabian"]
[Result "0-1"]
[TimeControl "15 + 5"]
[WhiteTitle "-"]
[BlackTitle "-"]
[WhiteFideId "1364146"]
[BlackFideId "1310160"]
[WhiteElo "1727"]
[BlackElo "1900"]

1. e4 {[%clk 00:15:09]} c6 {[%clk 00:15:08]} {[%emt 00:00:04]} 2. d4 {[%clk
00:15:13]} d5 {[%clk 00:15:12]} {[%emt 00:00:01]} 3. f3 {[%clk 00:15:18]} Qb6
{[%clk 00:15:04]} {[%emt 00:00:13]} 4. Nc3 {[%clk 00:15:21]} {[%emt 00:00:01]}
e5 {[%clk 00:14:47]} {[%emt 00:00:22]} 5. dxe5 {[%clk 00:15:25]} {[%emt
00:00:01]} Bc5 {[%clk 00:14:15]} {[%emt 00:00:38]} 6. Na4 {[%clk 00:15:29]}
Qa5+ {[%clk 00:12:12]} {[%emt 00:02:08]} 7. c3 {[%clk 00:15:16]} {[%emt
00:00:19]} Bxg1 {[%clk 00:11:49]} {[%emt 00:00:28]} 8. b4 {[%clk 00:14:33]}
{[%emt 00:00:48]} Qc7 {[%clk 00:11:14]} {[%emt 00:00:39]} 9. Rxg1 {[%clk
00:14:34]} {[%emt 00:00:04]} Qxe5 {[%clk 00:11:10]} {[%emt 00:00:10]} 10. Qd4
{[%clk 00:13:58]} {[%emt 00:00:40]} Qxd4 {[%clk 00:09:30]} {[%emt 00:01:45]} 11.
cxd4 {[%clk 00:14:01]} {[%emt 00:00:02]} Ne7 {[%clk 00:08:55]} {[%emt
00:00:40]} 12. Bf4 {[%clk 00:13:39]} {[%emt 00:00:27]} Nd7 {[%clk 00:08:40]}
{[%emt 00:00:20]} 13. Nc3 {[%clk 00:12:33]} {[%emt 00:01:11]} Nb6 {[%clk
00:08:21]} {[%emt 00:00:24]} 14. a4 {[%clk 00:12:20]} {[%emt 00:00:19]} Be6
{[%clk 00:07:57]} {[%emt 00:00:28]} 15. Bg3 {[%clk 00:11:42]} {[%emt 00:00:43]}
O-O {[%clk 00:06:50]} {[%emt 00:01:12]} 16. a5 {[%clk 00:11:13]} {[%emt
00:00:34]} Nc4 {[%clk 00:06:15]} {[%emt 00:00:40]} 17. Bxc4 {[%clk 00:11:16]}
{[%emt 00:00:02]} dxc4 {[%clk 00:06:19]} {[%emt 00:00:01]} 18. Kf2 {[%clk
00:10:45]} {[%emt 00:00:36]} f5 {[%clk 00:04:58]} {[%emt 00:01:27]} 19. Bd6
{[%clk 00:10:13]} {[%emt 00:00:37]} Rfe8 {[%clk 00:04:51]} {[%emt 00:00:11]} 20.
Bxe7 {[%clk 00:10:07]} {[%emt 00:00:12]} Rxe7 {[%clk 00:04:54]} {[%emt
00:00:01]} 21. e5 {[%clk 00:10:07]} {[%emt 00:00:05]} Rd7 {[%clk 00:04:42]}
{[%emt 00:00:18]} 22. Rgd1 {[%clk 00:09:54]} {[%emt 00:00:18]} Rad8 {[%clk
00:04:43]} {[%emt 00:00:04]} 23. Ne2 {[%clk 00:09:36]} {[%emt 00:00:23]} Kf7
{[%clk 00:04:18]} {[%emt 00:00:30]} 24. f4 {[%clk 00:09:35]} {[%emt 00:00:05]}
Bd5 {[%clk 00:04:16]} {[%emt 00:00:08]} 25. Nc3 {[%clk 00:09:35]} {[%emt
00:00:04]} b5 {[%clk 00:03:26]} {[%emt 00:00:55]} 26. axb6 {[%clk 00:09:18]}
{[%emt 00:00:23]} axb6 {[%clk 00:03:30]} {[%emt 00:00:01]} 27. Ra6 {[%clk
00:08:58]} {[%emt 00:00:25]} b5 {[%clk 00:03:21]} {[%emt 00:00:14]} 28. Nxd5
{[%clk 00:08:38]} {[%emt 00:00:25]} Rxd5 {[%clk 00:03:09]} {[%emt 00:00:17]} 29.
Ke3 {[%clk 00:08:32]} {[%emt 00:00:10]} Rc8 {[%clk 00:03:10]} {[%emt 00:00:04]}
30. Ra7+ {[%clk 00:08:25]} {[%emt 00:00:13]} Kf8 {[%clk 00:03:00]} {[%emt
00:00:14]} 31. h3 {[%clk 00:07:52]} {[%emt 00:00:39]} c5 {[%clk 00:02:34]}
{[%emt 00:00:31]} 32. bxc5 {[%clk 00:07:28]} {[%emt 00:00:28]} Rcxc5 {[%clk
00:02:27]} {[%emt 00:00:13]} 33. dxc5 {[%clk 00:06:04]} {[%emt 00:01:29]} Rxd1
{[%clk 00:02:16]} {[%emt 00:00:15]} 34. c6 {[%clk 00:06:08]} {[%emt 00:00:01]}
Rd8 {[%clk 00:01:38]} {[%emt 00:00:43]} 35. c7 {[%clk 00:05:24]} {[%emt
00:00:50]} Rc8 {[%clk 00:01:29]} {[%emt 00:00:14]} 36. Kd4 {[%clk 00:05:06]}
{[%emt 00:00:23]} Ke7 {[%clk 00:01:22]} {[%emt 00:00:12]} 37. Kd5 {[%clk
00:04:44]} {[%emt 00:00:27]} c3 {[%clk 00:01:25]} {[%emt 00:00:02]} 38. Kc6
{[%clk 00:03:48]} {[%emt 00:01:01]} c2 {[%clk 00:01:06]} {[%emt 00:00:24]} 39.
Ra1 {[%clk 00:03:52]} {[%emt 00:00:01]} b4 {[%clk 00:01:06]} {[%emt 00:00:05]}
40. Kb7 {[%clk 00:03:25]} {[%emt 00:00:32]} Rxc7+ {[%clk 00:00:53]} {[%emt
00:00:18]} 41. Kxc7 {[%clk 00:03:28]} {[%emt 00:00:02]} b3 {[%clk 00:00:57]}
{[%emt 00:00:01]} 42. Kb8 {[%clk 00:02:58]} {[%emt 00:00:35]} b2 {[%clk
00:00:56]} {[%emt 00:00:06]} 43. Ra7+ {[%clk 00:03:01]} {[%emt 00:00:02]} Kf8
{[%clk 00:00:51]} {[%emt 00:00:07]} 44. e6 {[%clk 00:02:29]} {[%emt 00:00:40]}
b1=Q+ {[%clk 00:00:49]} {[%emt 00:00:06]} 45. Ka8 {[%clk 00:02:32]} {[%emt
00:00:03]} c1=Q {[%clk 00:00:42]} {[%emt 00:00:12]} 0-1

[Event "Rapid Tournament (RAP)"]
[Site "Biel, Switzerland"]
[Date "2026.07.12"]
[Round "9.42"]
[White "Knuesel, Jolan"]
[Black "Trubini, Timon"]
[Result "1/2-1/2"]
[TimeControl "15 + 5"]
[WhiteTitle "-"]
[BlackTitle "-"]
[WhiteFideId "1364529"]
[BlackFideId "1347799"]
[WhiteElo "1651"]
[BlackElo "1896"]

1. d4 {[%clk 00:15:08]} {[%emt 00:00:01]} d5 {[%clk 00:15:08]} {[%emt
00:00:04]} 2. Bf4 {[%clk 00:15:12]} Nf6 {[%clk 00:15:04]} {[%emt 00:00:08]} 3.
e3 {[%clk 00:15:15]} {[%emt 00:00:02]} e6 {[%clk 00:14:59]} {[%emt 00:00:11]} 4.
Nf3 {[%clk 00:15:18]} {[%emt 00:00:02]} c5 {[%clk 00:15:02]} {[%emt 00:00:02]}
5. c3 {[%clk 00:15:18]} {[%emt 00:00:05]} Nc6 {[%clk 00:15:05]} {[%emt
00:00:01]} 6. Bd3 {[%clk 00:15:04]} {[%emt 00:00:18]} Qb6 {[%clk 00:14:51]}
{[%emt 00:00:19]} 7. Qb3 {[%clk 00:14:37]} {[%emt 00:00:32]} c4 {[%clk
00:14:54]} {[%emt 00:00:02]} 8. Qxb6 {[%clk 00:14:40]} {[%emt 00:00:03]} axb6
{[%clk 00:14:58]} {[%emt 00:00:01]} 9. Bc2 {[%clk 00:14:43]} {[%emt 00:00:01]}
Nh5 {[%clk 00:14:51]} {[%emt 00:00:12]} 10. Bg3 {[%clk 00:13:37]} {[%emt
00:01:12]} Nxg3 {[%clk 00:14:26]} {[%emt 00:00:29]} 11. hxg3 {[%clk 00:13:39]}
{[%emt 00:00:03]} h6 {[%clk 00:14:29]} {[%emt 00:00:03]} 12. Nbd2 {[%clk
00:12:59]} {[%emt 00:00:45]} b5 {[%clk 00:14:32]} {[%emt 00:00:02]} 13. b4
{[%clk 00:12:20]} {[%emt 00:00:44]} Ra3 {[%clk 00:14:24]} {[%emt 00:00:13]} 14.
Nb1 {[%clk 00:12:23]} {[%emt 00:00:02]} Ra8 {[%clk 00:14:13]} {[%emt 00:00:14]}
15. Nbd2 {[%clk 00:12:00]} {[%emt 00:00:29]} Ra3 {[%clk 00:13:43]} {[%emt
00:00:36]} 16. Nb1 {[%clk 00:12:03]} {[%emt 00:00:03]} 1/2-1/2

[Event "Rapid Tournament (RAP)"]
[Site "Biel, Switzerland"]
[Date "2026.07.12"]
[Round "9.43"]
[White "Berezovskii, Arina"]
[Black "Schmied, Stefan"]
[Result "1-0"]
[TimeControl "15 + 5"]
[WhiteTitle "-"]
[BlackTitle "-"]
[WhiteFideId "34449850"]
[BlackFideId "1335804"]
[WhiteElo "1895"]
[BlackElo "1778"]

1. e4 {[%clk 00:15:09]} c6 {[%clk 00:15:09]} {[%emt 00:00:02]} 2. d4 {[%clk
00:15:13]} {[%emt 00:00:01]} d5 {[%clk 00:15:13]} {[%emt 00:00:02]} 3. exd5
{[%clk 00:15:17]} cxd5 {[%clk 00:15:17]} {[%emt 00:00:01]} 4. Bd3 {[%clk
00:15:20]} {[%emt 00:00:01]} Nc6 {[%clk 00:15:21]} {[%emt 00:00:02]} 5. c3
{[%clk 00:15:24]} Nf6 {[%clk 00:15:20]} {[%emt 00:00:06]} 6. h3 {[%clk
00:15:28]} {[%emt 00:00:01]} g6 {[%clk 00:15:19]} {[%emt 00:00:05]} 7. Qc2
{[%clk 00:15:32]} {[%emt 00:00:02]} Bg7 {[%clk 00:15:20]} {[%emt 00:00:04]} 8.
Nf3 {[%clk 00:15:31]} {[%emt 00:00:06]} O-O {[%clk 00:15:21]} {[%emt 00:00:03]}
9. O-O {[%clk 00:15:32]} {[%emt 00:00:03]} Qc7 {[%clk 00:14:57]} {[%emt
00:00:30]} 10. Bg5 {[%clk 00:15:04]} {[%emt 00:00:33]} e5 {[%clk 00:14:05]}
{[%emt 00:00:57]} 11. dxe5 {[%clk 00:14:29]} {[%emt 00:00:40]} Nxe5 {[%clk
00:14:08]} {[%emt 00:00:02]} 12. Nxe5 {[%clk 00:14:23]} {[%emt 00:00:11]} Qxe5
{[%clk 00:14:11]} {[%emt 00:00:02]} 13. Be3 {[%clk 00:14:18]} {[%emt 00:00:10]}
Be6 {[%clk 00:13:34]} {[%emt 00:00:42]} 14. Nd2 {[%clk 00:14:04]} {[%emt
00:00:19]} Rfc8 {[%clk 00:13:21]} {[%emt 00:00:18]} 15. Nf3 {[%clk 00:13:33]}
{[%emt 00:00:36]} Qd6 {[%clk 00:13:15]} {[%emt 00:00:11]} 16. Bd4 {[%clk
00:13:19]} {[%emt 00:00:19]} Nd7 {[%clk 00:11:04]} {[%emt 00:02:16]} 17. Bxg7
{[%clk 00:12:56]} {[%emt 00:00:29]} Kxg7 {[%clk 00:11:06]} {[%emt 00:00:02]} 18.
Qd2 {[%clk 00:12:05]} {[%emt 00:00:56]} a5 {[%clk 00:09:12]} {[%emt 00:02:00]}
19. Rad1 {[%clk 00:11:25]} {[%emt 00:00:44]} Qc5 {[%clk 00:07:48]} {[%emt
00:01:28]} 20. Bc2 {[%clk 00:09:14]} {[%emt 00:02:17]} a4 {[%clk 00:07:23]}
{[%emt 00:00:31]} 21. a3 {[%clk 00:08:41]} {[%emt 00:00:38]} Nf6 {[%clk
00:06:16]} {[%emt 00:01:11]} 22. Rfe1 {[%clk 00:07:54]} {[%emt 00:00:51]} Ra6
{[%clk 00:04:00]} {[%emt 00:02:22]} 23. Ne5 {[%clk 00:07:09]} {[%emt 00:00:50]}
b5 {[%clk 00:02:27]} {[%emt 00:01:38]} 24. Nd3 {[%clk 00:06:52]} {[%emt
00:00:22]} Qc7 {[%clk 00:02:18]} {[%emt 00:00:15]} 25. Nf4 {[%clk 00:06:30]}
{[%emt 00:00:26]} Rd6 {[%clk 00:01:52]} {[%emt 00:00:31]} 26. Qd4 {[%clk
00:06:00]} {[%emt 00:00:35]} Qc5 {[%clk 00:01:32]} {[%emt 00:00:26]} 27. Qxc5
{[%clk 00:03:45]} {[%emt 00:02:20]} Rxc5 {[%clk 00:01:36]} 28. Rd4 {[%clk
00:03:48]} {[%emt 00:00:02]} Rc4 {[%clk 00:01:24]} {[%emt 00:00:17]} 29. Red1
{[%clk 00:03:40]} {[%emt 00:00:13]} Rxd4 {[%clk 00:01:28]} {[%emt 00:00:01]} 30.
Rxd4 {[%clk 00:03:43]} {[%emt 00:00:02]} g5 {[%clk 00:01:15]} {[%emt 00:00:18]}
31. Nd3 {[%clk 00:03:19]} {[%emt 00:00:29]} h6 {[%clk 00:00:36]} {[%emt
00:00:44]} 32. Nb4 {[%clk 00:03:22]} {[%emt 00:00:02]} Kf8 {[%clk 00:00:34]}
{[%emt 00:00:08]} 33. Bd1 {[%clk 00:03:14]} {[%emt 00:00:13]} Ke7 {[%clk
00:00:38]} {[%emt 00:00:01]} 34. Be2 {[%clk 00:03:12]} {[%emt 00:00:07]} Bd7
{[%clk 00:00:28]} {[%emt 00:00:14]} 35. Bf3 {[%clk 00:03:02]} {[%emt 00:00:15]}
Be6 {[%clk 00:00:26]} {[%emt 00:00:08]} 36. Nc2 {[%clk 00:02:54]} {[%emt
00:00:13]} Kd7 {[%clk 00:00:24]} {[%emt 00:00:07]} 37. Rb4 {[%clk 00:02:56]}
{[%emt 00:00:02]} Rb6 {[%clk 00:00:13]} {[%emt 00:00:16]} 38. Be2 {[%clk
00:02:53]} {[%emt 00:00:09]} Kc6 {[%clk 00:00:12]} {[%emt 00:00:06]} 39. Nd4+
{[%clk 00:02:56]} {[%emt 00:00:01]} Kc5 {[%clk 00:00:13]} {[%emt 00:00:04]} 40.
Bxb5 {[%clk 00:02:20]} {[%emt 00:00:40]} Ne4 {[%clk 00:00:10]} {[%emt
00:00:09]} 41. Bxa4 {[%clk 00:02:09]} {[%emt 00:00:16]} Rxb4 {[%clk 00:00:13]}
{[%emt 00:00:03]} 42. axb4+ {[%clk 00:02:12]} {[%emt 00:00:02]} Kc4 {[%clk
00:00:14]} {[%emt 00:00:03]} 43. Bb3+ {[%clk 00:02:08]} {[%emt 00:00:10]} Kd3
{[%clk 00:00:16]} {[%emt 00:00:03]} 44. Bc2+ {[%clk 00:02:11]} {[%emt
00:00:01]} Kc4 {[%clk 00:00:10]} {[%emt 00:00:12]} 45. Bxe4 {[%clk 00:02:14]}
dxe4 {[%clk 00:00:13]} {[%emt 00:00:02]} 46. Nxe6 {[%clk 00:02:18]} {[%emt
00:00:01]} fxe6 {[%clk 00:00:17]} 47. Kf1 {[%clk 00:02:22]} {[%emt 00:00:01]}
1-0

[Event "Rapid Tournament (RAP)"]
[Site "Biel, Switzerland"]
[Date "2026.07.12"]
[Round "9.44"]
[White "Varela Tavares, Goncalo"]
[Black "Belmadani, Naim"]
[Result "0-1"]
[TimeControl "15 + 5"]
[WhiteTitle "-"]
[BlackTitle "-"]
[WhiteFideId "1344773"]
[BlackFideId "1354302"]
[WhiteElo "1880"]
[BlackElo "1758"]

1. g3 {[%clk 00:15:06]} {[%emt 00:00:02]} e6 {[%clk 00:15:08]} {[%emt
00:00:03]} 2. b3 {[%clk 00:15:09]} {[%emt 00:00:02]} d5 {[%clk 00:15:12]} 3.
Bb2 {[%clk 00:15:11]} {[%emt 00:00:03]} Nf6 {[%clk 00:15:16]} 4. Bg2 {[%clk
00:15:13]} {[%emt 00:00:03]} c5 {[%clk 00:15:20]} {[%emt 00:00:02]} 5. e3
{[%clk 00:15:13]} {[%emt 00:00:04]} Nc6 {[%clk 00:15:23]} {[%emt 00:00:02]} 6.
Ne2 {[%clk 00:15:07]} {[%emt 00:00:11]} Bd7 {[%clk 00:15:25]} {[%emt 00:00:02]}
7. O-O {[%clk 00:15:07]} {[%emt 00:00:06]} g6 {[%clk 00:15:24]} {[%emt
00:00:06]} 8. d4 {[%clk 00:15:02]} {[%emt 00:00:10]} cxd4 {[%clk 00:15:06]}
{[%emt 00:00:22]} 9. Nxd4 {[%clk 00:15:05]} {[%emt 00:00:04]} Nxd4 {[%clk
00:15:09]} {[%emt 00:00:01]} 10. exd4 {[%clk 00:14:51]} {[%emt 00:00:19]} Bg7
{[%clk 00:15:09]} {[%emt 00:00:05]} 11. Ba3 {[%clk 00:14:52]} {[%emt 00:00:04]}
b5 {[%clk 00:14:58]} {[%emt 00:00:16]} 12. Bc5 {[%clk 00:14:37]} {[%emt
00:00:21]} Bc6 {[%clk 00:14:52]} {[%emt 00:00:10]} 13. a4 {[%clk 00:14:34]}
{[%emt 00:00:09]} a6 {[%clk 00:14:23]} {[%emt 00:00:33]} 14. a5 {[%clk
00:14:18]} {[%emt 00:00:22]} Nd7 {[%clk 00:14:21]} {[%emt 00:00:06]} 15. Bb4
{[%clk 00:14:13]} {[%emt 00:00:09]} Rc8 {[%clk 00:14:09]} {[%emt 00:00:18]} 16.
Nd2 {[%clk 00:14:13]} {[%emt 00:00:05]} Qc7 {[%clk 00:13:49]} {[%emt 00:00:24]}
17. Rc1 {[%clk 00:14:02]} {[%emt 00:00:16]} Nb8 {[%clk 00:13:30]} {[%emt
00:00:24]} 18. c4 {[%clk 00:13:53]} {[%emt 00:00:15]} bxc4 {[%clk 00:13:26]}
{[%emt 00:00:09]} 19. bxc4 {[%clk 00:13:54]} {[%emt 00:00:03]} Bb7 {[%clk
00:12:34]} {[%emt 00:00:57]} 20. Qa4+ {[%clk 00:12:15]} {[%emt 00:01:45]} Qd7
{[%clk 00:12:05]} {[%emt 00:00:34]} 21. Qa3 {[%clk 00:11:39]} {[%emt 00:00:41]}
Bxd4 {[%clk 00:11:55]} {[%emt 00:00:14]} 22. cxd5 {[%clk 00:11:34]} {[%emt
00:00:11]} e5 {[%clk 00:09:25]} {[%emt 00:02:34]} 23. Ne4 {[%clk 00:11:25]}
{[%emt 00:00:14]} Rxc1 {[%clk 00:08:57]} {[%emt 00:00:34]} 24. Nf6+ {[%clk
00:11:09]} {[%emt 00:00:20]} Kd8 {[%clk 00:08:40]} {[%emt 00:00:23]} 25. Nxd7
{[%clk 00:11:09]} {[%emt 00:00:05]} Rxf1+ {[%clk 00:08:42]} {[%emt 00:00:04]}
26. Bxf1 {[%clk 00:11:07]} {[%emt 00:00:06]} Nxd7 {[%clk 00:08:30]} {[%emt
00:00:17]} 27. Be7+ {[%clk 00:10:40]} {[%emt 00:00:31]} Ke8 {[%clk 00:08:22]}
{[%emt 00:00:14]} 28. d6 {[%clk 00:09:47]} {[%emt 00:00:57]} f5 {[%clk
00:08:00]} {[%emt 00:00:28]} 29. Qb3 {[%clk 00:09:35]} {[%emt 00:00:16]} Nc5
{[%clk 00:07:57]} {[%emt 00:00:10]} 30. Qb1 {[%clk 00:08:38]} {[%emt 00:01:01]}
Kd7 {[%clk 00:07:34]} {[%emt 00:00:28]} 31. Qb6 {[%clk 00:06:28]} {[%emt
00:02:14]} Rc8 {[%clk 00:07:35]} {[%emt 00:00:05]} 32. Bc4 {[%clk 00:04:33]}
{[%emt 00:01:59]} Ba8 {[%clk 00:07:06]} {[%emt 00:00:35]} 33. Kf1 {[%clk
00:02:11]} {[%emt 00:02:27]} Bb7 {[%clk 00:05:02]} {[%emt 00:02:10]} 34. Qb1
{[%clk 00:01:27]} {[%emt 00:00:47]} Be4 {[%clk 00:04:41]} {[%emt 00:00:27]} 35.
Qc1 {[%clk 00:00:19]} {[%emt 00:01:13]} Nd3 {[%clk 00:04:14]} {[%emt 00:00:31]}
36. Qh6 {[%clk 00:00:06]} {[%emt 00:00:19]} Rxc4 {[%clk 00:04:04]} {[%emt
00:00:15]} 37. f3 {[%clk 00:00:06]} {[%emt 00:00:05]} Bxf3 {[%clk 00:03:51]}
{[%emt 00:00:18]} 38. Bg5 {[%clk 00:00:10]} {[%emt 00:00:01]} Kxd6 {[%clk
00:02:53]} {[%emt 00:01:03]} 39. Qxh7 {[%clk 00:00:13]} {[%emt 00:00:02]} Kc5
{[%clk 00:02:21]} {[%emt 00:00:37]} 40. Qc7+ {[%clk 00:00:10]} {[%emt
00:00:08]} Kb4 {[%clk 00:02:22]} {[%emt 00:00:02]} 41. Qb8+ {[%clk 00:00:08]}
{[%emt 00:00:09]} Ka4 {[%clk 00:02:09]} {[%emt 00:00:17]} 42. Qb1 {[%clk
00:00:09]} {[%emt 00:00:04]} f4 {[%clk 00:01:52]} {[%emt 00:00:23]} 43. gxf4
{[%clk 00:00:11]} {[%emt 00:00:03]} Rc1+ {[%emt 00:00:11]} 0-1